Cogmind - Beta 13 @@@ ROGUE MODE // 2024.05.15 @ 05:49:59 Player: BionicBot Result: Destroyed by G-73 Enforcer with Phase Gun Performance ------------- Evolutions (9) 4500 Regions Visited (19) 3800 Robots Destroyed (144) 720 Value Destroyed (3961) 3961 Prototype IDs (39) 780 Alien Tech Used (0) 0 Bonus (5845) 5845 TOTAL SCORE: 19606 Bonus ------- High Alert Combat Kills 208 Follower Combat Kills 2755 Network Hubs Disabled 200 Built Enhanced Grunts 300 Met R17 at Cetus 500 Met R17 at Research 2000 Friendly Fire -118 Cogmind --------- Core Integrity 0/1600 Matter 206/300 Energy 91/100 System Corruption 5% Temperature Cool (9) Movement Core (50) Location -1/Access Parts ------- > --- POWER (2) -------- (None) > --- PROPULSION (5) --- (None) > --- UTILITY (16) ----- (None) > --- WEAPON (2) ------- (None) > --- INVENTORY (5) ---- Cooled Impulse Thruster Gravity Neutralizer Layered Medium Armor Plating Advanced System Restoration Module Enhanced Nova Cannon Peak State ------------ > --- POWER ------------ Particle Reactor > --- PROPULSION ------- Cooled Impulse Thruster Cooled Impulse Thruster Cooled Impulse Thruster Cooled Impulse Thruster > --- UTILITY ---------- Advanced Power Amplifier Medium Storage Unit Advanced Gravity Neutralizer Advanced Visual Processing Unit Advanced Sensor Array Advanced Signal Interpreter Long-range Terrain Scanner Advanced Terrain Scan Processor Improved Cloaking Device Improved Utility Shielding Graphene Brace Hacking Suite Improved Hacking Suite Improved System Shield Improved System Shield > --- WEAPON ----------- Enhanced Nova Cannon Chainsword > --- INVENTORY -------- Micro Antimatter Reactor Cooled Impulse Thruster Cooled Impulse Thruster Cooled Impulse Thruster Gravity Neutralizer Long-range Sensor Array Layered Medium Armor Plating Advanced System Restoration Module Advanced Datajack Heavy Mace [Rating: 138] Favorites ----------- Power Ion Engine Engine Ion Engine Power Core Light Nuclear Core Reactor Particle Reactor Propulsion Cooled Impulse Thruster Treads Light Treads Wheel Armored Huge Wheel Flight Unit Cooled Impulse Thruster Utility Improved System Shield Device Advanced Sensor Array Storage Medium Storage Unit Processor Advanced Signal Interpreter Hackware Improved System Shield Protection Light Armor Plating Weapon Improved Light Cannon Energy Gun Medium Laser Energy Cannon Enhanced Nova Cannon Ballistic Gun Heavy Assault Rifle Ballistic Cannon Improved Light Cannon Launcher Grenade Launcher Special Weapon Improved Plasma Cutter Impact Weapon Heavy Hammer Slashing Weapon Chainsword Special Melee Weapon Advanced Datajack Build | -11 -10 -9 -9 -9 -7 -6 -6 -6 -5 -5 -5 -5 -5 -4 -3 -3 -2 -2 -1 ------- Run | Yrd Mat Mat Sto Rec Fac Fac Was Fac Fac Ext Cet Arc Hub Fac Res Tes Res Qua Acc Slots Evolved 18 | . . 2 . . 4 2 . . 2 . . . . 2 2 . 2 . 2 Power 1 | . . . . . . . . . . . . . . . . . . . 1 Propulsion 3 | . . . . . 2 . . . . . . . . . . . . . 1 Utility 14 | . . 2 . . 2 2 . . 2 . . . . 2 2 . 2 . . Weapon . | . . . . . . . . . . . . . . . . . . . . Parts Attached 215 | 7 15 25 16 5 17 11 5 12 3 21 . 10 16 5 26 6 2 3 10 Power 27 | 2 1 3 2 . 4 1 1 1 . 3 . 3 2 . 3 . . 1 . Engine 14 | 2 1 2 2 . 1 1 1 1 . 1 . 1 1 . . . . . . Core 4 | . . 1 . . 3 . . . . . . . . . . . . . . Reactor 9 | . . . . . . . . . . 2 . 2 1 . 3 . . 1 . Propulsion 34 | 2 2 4 4 . 2 1 1 2 1 3 . 2 1 . 8 . . . 1 Treads 11 | 2 2 3 4 . . . . . . . . . . . . . . . . Leg . | . . . . . . . . . . . . . . . . . . . . Wheel 3 | . . 1 . . 2 . . . . . . . . . . . . . . Hover . | . . . . . . . . . . . . . . . . . . . . Flight 20 | . . . . . . 1 1 2 1 3 . 2 1 . 8 . . . 1 Utility 94 | 1 6 11 4 1 8 7 2 8 2 12 . 4 6 4 10 5 2 . 1 Device 45 | . 2 1 . . 5 3 2 3 1 7 . 1 3 2 9 4 1 . 1 Storage 5 | 1 1 1 . . . . . . . . . . 1 1 . . . . . Processor 9 | . . . . . 1 2 . 2 . 2 . . . . 1 . 1 . . Hackware 9 | . . . . . . 2 . 1 1 1 . 3 1 . . . . . . Protection 26 | . 3 9 4 1 2 . . 2 . 2 . . 1 1 . 1 . . . Artifact . | . . . . . . . . . . . . . . . . . . . . Weapon 60 | 2 6 7 6 4 3 2 1 1 . 3 . 1 7 1 5 1 . 2 8 Energy Gun 7 | 1 2 2 2 . . . . . . . . . . . . . . . . Energy Cannon 5 | . . . . . . . . . . . . . . . . . . 1 4 Ballistic Gun 5 | 1 . 3 1 . . . . . . . . . . . . . . . . Ballistic Cannon 10 | . 4 . 2 2 2 . . . . . . . . . . . . . . Launcher 1 | . . . . . 1 . . . . . . . . . . . . . . Special Weapon 1 | . . . . . . . . . . . . . 1 . . . . . . Impact Weapon 12 | . . 1 1 . . 2 1 1 . . . . 4 . 2 . . . . Slashing Weapon 8 | . . . . . . . . . . 2 . 1 1 1 2 1 . . . Piercing Weapon . | . . . . . . . . . . . . . . . . . . . . Special Melee Weapon 11 | . . 1 . 2 . . . . . 1 . . 1 . 1 . . 1 4 Unidentified Prototypes 10 | . . . 1 . 1 1 1 2 . . . . 1 1 1 1 . . . Corrupted Parts 1 | . . . . . . . . . . 1 . . . . . . . . . System Corruption 5 | . . . . . . . . . . 5 . . . . . . . . . Parts Lost 53 | . . 10 8 . 12 . 7 . . 6 . . 1 . . 1 . 1 7 Power 6 | . . 2 . . 1 . . . . 1 . . . . . . . 1 1 Propulsion 12 | . . 3 3 . 1 . 1 . . 2 . . 1 . . . . . 1 Utility 24 | . . 2 4 . 6 . 5 . . 2 . . . . . 1 . . 4 Weapon 11 | . . 3 1 . 4 . 1 . . 1 . . . . . . . . 1 Highest Loss Streak 8 | . . 3 3 . 8 . 7 . . 5 . . 1 . . 1 . 1 6 To Critical Strikes . | . . . . . . . . . . . . . . . . . . . . Average Slot Usage (%) 84 | . 98 95 83 99 77 40 25 28 62 78 82 92 89 91 92 96 92 95 85 Engine 4 | . 13 5 11 11 . 3 2 3 5 1 5 . 1 . . . . . . Core 1 | . . 5 . . 5 . . . . . . . . . . . . . . Reactor 1 | . . . . . . . . . . 2 . 4 3 5 4 4 4 4 3 Treads 6 | . 28 12 17 22 5 . . . . . . . . . . . . . . Wheel 1 | . . 8 2 . 9 . . . . . . . . . . . . . . Flight 9 | . . . . . . 6 1 4 16 14 11 22 17 15 18 19 17 17 15 Device 15 | . 3 11 5 . 14 10 8 8 19 20 23 18 17 19 23 24 25 26 23 Storage 5 | . 14 11 11 11 6 . . . . . . . . . 4 4 4 4 3 Processor 7 | . . . . . 5 5 4 4 5 12 17 17 14 10 9 9 10 13 11 Hackware 7 | . . . . . . 6 5 . 2 5 11 15 19 21 19 19 17 17 15 Protection 10 | . 9 19 15 32 12 . . 1 5 6 5 5 5 8 4 4 4 4 3 Energy Gun 1 | . 14 3 2 . . . . . . . . . . . . . . . . Ballistic Gun 2 | . 2 17 9 . . . . . . . . . . . . . . . . Ballistic Cannon 3 | . 11 . 7 20 14 . . . . . . . . . . . . . . Impact Weapon 1 | . . . . . . 6 2 3 5 5 5 . 1 5 2 1 . . . Slashing Weapon 1 | . . . . . . . . . . 1 . 4 3 3 1 2 4 4 3 Special Melee Weapon 1 | . . . . 1 . . . . . 1 . . 1 . 2 4 4 3 3 Naked Turns 191 | . . . . . 49 . 69 44 . . . . . . . . . . 29 Heaviest Build 44 | 13 27 38 38 32 34 15 15 19 21 31 24 33 32 38 44 44 42 42 44 Greatest Support 56 | 40 40 40 40 40 56 17 17 24 40 35 25 33 38 42 44 56 44 44 46 Greatest Overweight (x) 6 | 1 . 3 6 . 1 . . 2 . 2 . . 1 . 1 . . . 2 Average Overweight (x) . | . . 1 . . . . . . . . . . . . . . . . . Largest Inventory Capacity 10 | 8 10 10 10 10 10 5 5 5 5 5 5 5 5 10 10 10 10 10 10 Average Capacity 7 | 7 8 10 10 10 9 5 5 5 5 5 5 5 5 5 10 10 10 10 9 Most Carried 10 | 2 10 10 10 10 10 4 5 5 4 5 5 5 5 6 10 10 10 10 10 Average Carried 7 | 1 6 9 9 10 9 1 3 3 3 4 5 4 4 4 8 9 9 9 9 Final Capacity 10 | 8 10 10 10 10 5 5 5 5 5 5 5 5 5 10 10 10 10 10 5 Final Carried 10 | 2 10 10 10 10 5 2 5 3 4 5 5 5 5 6 10 10 10 9 5 Class Distribution -------------------- 36% | Mutant 13% | Hacker-Scout 10% | Hacker-Ninja 8% | Scavenger-Scout 8% | Scavenger-Mutant 6% | Commander-Mutant 5% | Commander-Scout Dominant Class ---------------- Mutant | -10/Materials Mutant | -9/Materials Mutant | -9/Storage Commander-Mutant | -9/Recycling Mutant | -7/Factory Mutant | -6/Factory Mutant | -6/Waste Mutant | -6/Factory Mutant | -5/Factory Commander-Scout | -5/Extension Commander-Scout | -5/Cetus Scavenger-Scout | -5/Archives Hacker-Scout | -5/Hub_04(d) Hacker-Scout | -4/Factory Hacker-Scout | -3/Research Hacker-Scout | -3/Testing Hacker-Ninja | -2/Research Hacker-Ninja | -2/Quarantine Hacker-Ninja | -1/Access Resources | -11 -10 -9 -9 -9 -7 -6 -6 -6 -5 -5 -5 -5 -5 -4 -3 -3 -2 -2 -1 ----------- Run | Yrd Mat Mat Sto Rec Fac Fac Was Fac Fac Ext Cet Arc Hub Fac Res Tes Res Qua Acc Matter Collected 3984 | 283 273 867 604 122 636 101 . 162 . 300 . 100 145 . 300 . 30 . 61 Remotely 526 | . . . . . 526 . . . . . . . . . . . . . . Salvage Created 5401 | 103 483 1782 1245 233 575 128 . 70 . 169 . 300 180 . 56 . 30 . 47 Parts 276 | 4 29 99 62 8 34 1 . . . 7 . 23 6 . . . 2 . 1 Haulers Intercepted 12 | . 1 4 5 . 1 . . . . . . . 1 . . . . . . Recyclers Shooed 5 | 1 . 1 1 2 . . . . . . . . . . . . . . . Parts Field Recycled . | . . . . . . . . . . . . . . . . . . . . Retrieved Matter . | . . . . . . . . . . . . . . . . . . . . Parts Self-Destructed . | . . . . . . . . . . . . . . . . . . . . Prevented . | . . . . . . . . . . . . . . . . . . . . Kills | -11 -10 -9 -9 -9 -7 -6 -6 -6 -5 -5 -5 -5 -5 -4 -3 -3 -2 -2 -1 ------- Run | Yrd Mat Mat Sto Rec Fac Fac Was Fac Fac Ext Cet Arc Hub Fac Res Tes Res Qua Acc Combat Hostiles Destroyed 78 | . 12 33 19 2 10 . . . . 2 . . . . . . . . . Melee 2 | . 1 . . . . . . . . 1 . . . . . . . . . Guns 52 | . 9 32 11 . . . . . . . . . . . . . . . . Cannons 23 | . 2 1 8 2 10 . . . . . . . . . . . . . . Classes Destroyed 15 | 2 6 3 . 1 3 . . . . . . . . . . . . . . Worker 7 | . 1 5 . . 1 . . . . . . . . . . . . . . Builder 3 | . . 1 . 1 . . . . . . . . . . . . 1 . . Tunneler 4 | 2 . 1 . . 1 . . . . . . . . . . . . . . Hauler 12 | . 1 4 5 . 1 . . . . . . . 1 . . . . . . Recycler 10 | 1 . 2 2 3 1 1 . . . . . . . . . . . . . Mechanic 1 | . . . . . 1 . . . . . . . . . . . . . . Operator 14 | . 1 1 . . . . . 1 . 1 . 9 . . 1 . . . . Watcher 14 | . 1 1 2 . 3 . . 2 . 1 . . 2 . 1 . . . 1 Swarmer 10 | . 3 7 . . . . . . . . . . . . . . . . . Grunt 40 | . 9 16 10 . 4 . . . . 1 . . . . . . . . . Brawler 1 | . . 1 . . . . . . . . . . . . . . . . . Sentry 22 | . . 9 9 1 2 . . . . 1 . . . . . . . . . Specialist 1 | . . . . . 1 . . . . . . . . . . . . . . Hunter 2 | . . . . . 2 . . . . . . . . . . . . . . Programmer 3 | . . . . 1 2 . . . . . . . . . . . . . . Best Kill Streak 5 | 2 5 5 4 2 5 1 . 1 . 1 . 5 1 . 1 . 1 . 1 Combat Bots Only 5 | . 5 4 4 2 4 . . . . 1 . . . . . . . . . Max Kills in Single Turn 2 | 1 2 2 1 1 1 1 . 1 . 1 . 1 1 . 1 . 1 . 1 Gunslinging . | . . . . . . . . . . . . . . . . . . . . Exploded . | . . . . . . . . . . . . . . . . . . . . Melee 1 | . 1 . . . . . . . . 1 . . . . . . . . . Uniques/NPCs Destroyed . | . . . . . . . . . . . . . . . . . . . . Combat | -11 -10 -9 -9 -9 -7 -6 -6 -6 -5 -5 -5 -5 -5 -4 -3 -3 -2 -2 -1 -------- Run | Yrd Mat Mat Sto Rec Fac Fac Was Fac Fac Ext Cet Arc Hub Fac Res Tes Res Qua Acc Hostile Shots Fired 768 | . 49 163 114 9 196 6 11 . 4 24 . 2 1 . 12 6 . 16 155 Missed 243 | . 11 42 24 4 59 5 . . 3 7 . 2 1 . 8 2 . 6 69 Damage Taken 9347 | . 440 1498 1290 69 2077 5 522 . 12 572 50 . 114 . 175 116 . 193 2214 Core 3125 | . 37 119 163 . 567 . 451 . . 73 . . 34 . 24 . . 48 1609 Absorbed by Shields 108 | . . . . . . . . . . 70 . . . . . . . 38 . Redirected to Shielding 217 | . . . . . . . . . . 2 . . . . 92 35 . 26 62 Regen/Repaired (Parts) 33 | . . . . . . . . . . . . . . 33 . . . . . Core Remaining (%) 73 | 100 85 . . 29 19 . . 46 . . . . 89 100 . 98 . 96 . Volleys Fired 391 | 13 45 146 95 9 67 . . . . . . . 1 . . . . 5 10 Largest 2 | 2 2 2 2 2 2 . . . . . . . 1 . . . . 1 1 Hottest 120 | 70 85 85 104 78 78 . . . . . . . 20 . . . . 120 120 Shots Fired 725 | 26 88 282 165 16 132 . . . . . . . 1 . . . . 5 10 Gun 490 | 26 64 279 121 . . . . . . . . . . . . . . . . Cannon 232 | . 24 3 44 16 130 . . . . . . . . . . . . 5 10 Launcher 2 | . . . . . 2 . . . . . . . . . . . . . . Special 1 | . . . . . . . . . . . . . 1 . . . . . . Kinetic 571 | 13 45 231 136 16 130 . . . . . . . . . . . . . . Thermal 152 | 13 43 51 29 . . . . . . . . . 1 . . . . 5 10 Explosive 2 | . . . . . 2 . . . . . . . . . . . . . . Electromagnetic . | . . . . . . . . . . . . . . . . . . . . Robot Hit Streak 25 | 5 8 21 25 5 8 . . . . . . . . . . . . . . Robot Miss Streak 5 | 2 5 4 4 1 5 . . . . . . . . . . . . . . Penetration Max . | . . . . . . . . . . . . . . . . . . . . Secondary Targets 3 | . . 1 2 . . . . . . . . . . . . . . . . Max Gunslinging Chain 1 | . . 1 1 . . . . . . . . . . . . . . . . Shots Hit Robots 546 | 16 49 197 115 38 79 1 . 3 . 17 . 12 10 . 3 . 1 . 5 Core Hits 214 | 5 26 74 40 5 50 . . . . 4 . 6 3 . . . . . 1 Critical Kills . | . . . . . . . . . . . . . . . . . . . . Critical Parts Destroyed 9 | . . 2 . . . 1 . . . 4 . . . . 2 . . . . Critical Strikes 33 | 1 6 8 6 . 3 1 . . . 4 . . 2 . 2 . . . . Burn 16 | 1 5 6 4 . . . . . . . . . . . . . . . . Destroy 2 | . . 2 . . . . . . . . . . . . . . . . . Blast 6 | . 1 . 2 . 3 . . . . . . . . . . . . . . Smash 7 | . . . . . . 1 . . . 4 . . . . 2 . . . . Sever 2 | . . . . . . . . . . . . . 2 . . . . . . Melee Attacks 145 | . . 5 4 29 . 1 . 3 2 23 . 12 15 5 13 2 6 1 24 Impact 55 | . . 4 4 . . 1 . 3 2 23 . 1 1 4 11 1 . . . Slashing 60 | . . . . . . . . . . . . 11 14 1 2 1 6 1 24 Piercing . | . . . . . . . . . . . . . . . . . . . . Sneak Attacks 46 | . . 1 . 28 . 1 . . . 3 . 9 1 . 1 . 1 . 1 Combat Hostiles 16 | . . . . 15 . . . . . 1 . . . . . . . . . Follow-up Attacks . | . . . . . . . . . . . . . . . . . . . . Damage Inflicted 10896 | 158 711 2851 1900 232 2018 119 . 150 . 645 . 1149 450 . 183 . 69 . 261 Guns 4713 | 158 434 2813 1308 . . . . . . . . . . . . . . . . Cannons 2706 | . 256 36 590 198 1626 . . . . . . . . . . . . . . Explosions 387 | . . . . . 387 . . . . . . . . . . . . . . Melee 3014 | . . . . . . 119 . 150 . 645 . 1149 450 . 183 . 69 . 249 Ramming 76 | . 21 2 2 34 5 . . . . . . . . . . . . . 12 Kinetic 6122 | 60 369 2309 1560 198 1626 . . . . . . . . . . . . . . Thermal 1297 | 98 321 540 338 . . . . . . . . . . . . . . . . Explosive 387 | . . . . . 387 . . . . . . . . . . . . . . Electromagnetic . | . . . . . . . . . . . . . . . . . . . . Impact 1183 | . . . . . . 119 . 150 . 645 . 124 . . 145 . . . . Slashing 1831 | . . . . . . . . . . . . 1025 450 . 38 . 69 . 249 Piercing . | . . . . . . . . . . . . . . . . . . . . Highest Corruption 15 | . 4 . . 2 4 . 15 15 1 5 . . . . . 1 . . 5 Average Corruption 4 | . 1 . . 2 3 . 7 15 1 2 . . . . . 1 . . 3 Corruption Purged 7 | . . . . . . . . . 1 5 . . . . . 1 . . . Corruption Blocked . | . . . . . . . . . . . . . . . . . . . . Effects 44 | . 4 . . 14 . . 5 17 2 1 . . . . . . . . 1 Message Errors 11 | . . . . 4 . . 2 4 1 . . . . . . . . . . Matter Fused 10 | . 2 . . 4 . . . 3 . . . . . . . . . . 1 Heat Flow Errors 11 | . . . . 4 . . 1 5 . 1 . . . . . . . . . Energy Discharges 3 | . 1 . . 1 . . . . 1 . . . . . . . . . . Parts Rejected 1 | . 1 . . . . . . . . . . . . . . . . . . Data Loss (minor) 4 | . . . . . . . 1 3 . . . . . . . . . . . Data Loss (major) 3 | . . . . 1 . . . 2 . . . . . . . . . . . Misdirections 1 | . . . . . . . 1 . . . . . . . . . . . . Overload Shots . | . . . . . . . . . . . . . . . . . . . . Overflow Damage 1073 | . . . . 13 18 119 . 83 . 200 . 367 17 . 145 . 29 . 82 Projectiles 13 | . . . . 13 . . . . . . . . . . . . . . . Explosions 18 | . . . . . 18 . . . . . . . . . . . . . . Melee 1042 | . . . . . . 119 . 83 . 200 . 367 17 . 145 . 29 . 82 Knockbacks 40 | . 5 1 2 2 28 . . 1 . . . . . . . . . . 1 Impact 2 | . . . . . . . . 1 . . . . . . . . . . 1 Kinetic 34 | . 5 1 2 2 24 . . . . . . . . . . . . . . Secondary 4 | . . . . . 4 . . . . . . . . . . . . . . Self-Inflicted Damage 31 | . . 1 . . 24 . . . . . . . . . . . . . 6 Shots 1 | . . . . . 1 . . . . . . . . . . . . . . Rammed 20 | . 8 2 1 6 2 . . . . . . . . . . . . . 1 Targets Rammed 22 | . 9 2 1 7 2 . . . . . . . . . . . . . 1 Kicked . | . . . . . . . . . . . . . . . . . . . . Crushed 2 | . 1 . . 1 . . . . . . . . . . . . . . . Highest Temperature 466 | 110 309 270 354 254 339 . 107 254 . 80 . . . . 466 1 . . 102 Average Temperature 73 | 42 88 45 98 76 93 . 62 104 . 56 . . . . 236 1 . . 38 Received Heat Transfer 1777 | . 201 552 516 6 324 . . . . 121 . . 12 . . 18 . . 27 Effects 7 | . . . 2 . 1 . . 3 . . . . . . 1 . . . . Shutdowns 1 | . . . . . . . . . . . . . . . 1 . . . . Interference 5 | . . . 1 . 1 . . 3 . . . . . . . . . . . Short Circuit 1 | . . . 1 . . . . . . . . . . . . . . . . Siege Activations . | . . . . . . . . . . . . . . . . . . . . Robots Corrupted . | . . . . . . . . . . . . . . . . . . . . Combat Hostiles . | . . . . . . . . . . . . . . . . . . . . Parts Fried 14 | . . . . . . 1 . 6 . 2 . 1 . . 4 . . . . Impact Corruptions 16 | . . . . . . 1 . 5 . 5 . 1 . . 4 . . . . Robots Melted . | . . . . . . . . . . . . . . . . . . . . Combat Hostiles . | . . . . . . . . . . . . . . . . . . . . Parts Melted 11 | 1 1 4 5 . . . . . . . . . . . . . . . . Heat Transferred 4884 | 370 1332 2035 1147 . . . . . . . . . . . . . . . . Parts Sabotaged . | . . . . . . . . . . . . . . . . . . . . Parts Stolen . | . . . . . . . . . . . . . . . . . . . . Parts Stripped . | . . . . . . . . . . . . . . . . . . . . Power Chain Reactions . | . . . . . . . . . . . . . . . . . . . . Alert | -11 -10 -9 -9 -9 -7 -6 -6 -6 -5 -5 -5 -5 -5 -4 -3 -3 -2 -2 -1 ------- Run | Yrd Mat Mat Sto Rec Fac Fac Was Fac Fac Ext Cet Arc Hub Fac Res Tes Res Qua Acc Peak Influence 780 | 15 179 780 581 289 152 135 77 179 190 487 511 436 687 143 109 208 147 124 321 Initial 293 | . 9 25 293 226 10 56 47 25 87 . 236 124 82 120 14 60 40 82 68 Average 189 | 6 73 358 401 165 74 99 41 101 142 193 377 319 366 67 52 154 105 95 73 Maximum Alert Level 3 | . . 3 2 1 . . . . . 2 2 2 2 . . 1 . . 1 Low Security (%) 63 | 100 100 28 . 57 100 100 100 100 100 65 . 3 24 100 100 44 100 100 88 Level 1 20 | . . 30 47 42 . . . . . 16 70 65 25 . . 56 . . 11 Level 2 14 | . . 32 52 . . . . . . 18 29 30 49 . . . . . . Level 3 1 | . . 9 . . . . . . . . . . . . . . . . . Level 4 . | . . . . . . . . . . . . . . . . . . . . Level 5 . | . . . . . . . . . . . . . . . . . . . . High Security . | . . . . . . . . . . . . . . . . . . . . Max Security . | . . . . . . . . . . . . . . . . . . . . Squads Dispatched 39 | . 3 6 4 . 6 1 . 2 1 1 . . 3 1 5 . 1 2 3 Investigation 14 | . 2 2 1 . 2 . . 1 1 . . . 1 . 2 . 1 1 . Extermination 6 | . . . . . 1 1 . . . . . . 1 1 . . . . 2 Reinforcement 13 | . 1 2 1 . 1 . . 1 . 1 . . 1 . 3 . . 1 1 Assault 2 | . . 2 . . . . . . . . . . . . . . . . . Garrison 4 | . . . 2 . 2 . . . . . . . . . . . . . . Intercept . | . . . . . . . . . . . . . . . . . . . . Searches Triggered . | . . . . . . . . . . . . . . . . . . . . Construction Impeded . | . . . . . . . . . . . . . . . . . . . . Haulers Reinforced 2 | . . . . . 1 . . . . . . . 1 . . . . . . Active Scanning Responses . | . . . . . . . . . . . . . . . . . . . . Cargo Convoy Interrupts 1 | . . . . . 1 . . . . . . . . . . . . . . Stealth | -11 -10 -9 -9 -9 -7 -6 -6 -6 -5 -5 -5 -5 -5 -4 -3 -3 -2 -2 -1 --------- Run | Yrd Mat Mat Sto Rec Fac Fac Was Fac Fac Ext Cet Arc Hub Fac Res Tes Res Qua Acc Distress Signals 24 | . 2 8 1 . 1 . . 1 . . 2 . 2 . 4 1 . . 2 Communications Jammed . | . . . . . . . . . . . . . . . . . . . . Distress Signals . | . . . . . . . . . . . . . . . . . . . . Times Spotted 292 | . 18 51 25 5 38 2 6 5 4 31 9 5 19 5 9 8 . 7 45 Peak Tracking Total 22 | . 4 5 7 2 11 2 6 4 4 6 5 1 5 3 4 6 . 6 22 Tactical Retreats 30 | . . 5 3 . 1 1 1 3 2 4 1 . . 1 1 1 . . 6 Traps | -11 -10 -9 -9 -9 -7 -6 -6 -6 -5 -5 -5 -5 -5 -4 -3 -3 -2 -2 -1 ------- Run | Yrd Mat Mat Sto Rec Fac Fac Was Fac Fac Ext Cet Arc Hub Fac Res Tes Res Qua Acc Traps Triggered 25 | . 8 1 1 . 2 1 . 1 . 2 . . 1 . 1 2 2 3 . Indirectly . | . . . . . . . . . . . . . . . . . . . . Trap Hack Attempts 40 | . . . . . . . . . . . . . 32 . . . . . 8 Triggered . | . . . . . . . . . . . . . . . . . . . . Disarmed 1 | . . . . . . . . . . . . . . . . . . . 1 Reprogrammed 6 | . . . . . . . . . . . . . 4 . . . . . 2 Reused 1 | . . . . . . . . . . . . . . . . . . . 1 Traps Extracted . | . . . . . . . . . . . . . . . . . . . . Installed . | . . . . . . . . . . . . . . . . . . . . Triggered 1 | . . . . . . . . . . . . . . . . . . . 1 Machines | -11 -10 -9 -9 -9 -7 -6 -6 -6 -5 -5 -5 -5 -5 -4 -3 -3 -2 -2 -1 ---------- Run | Yrd Mat Mat Sto Rec Fac Fac Was Fac Fac Ext Cet Arc Hub Fac Res Tes Res Qua Acc Machines Disabled 10 | . . 1 1 . . . . . . 3 . 3 2 . . . . . . Max in Single Turn 1 | . . 1 1 . . . . . . . . . . . . . . . . Garrison Access 6 | . . . . . 1 1 . . 1 . . . . . 2 . . . 1 Network Hub 1 | . . . . . . . . . . . . . 1 . . . . . . Energy Cycler 2 | . . . . . . . . . . 2 . . . . . . . . . Machines Repaired . | . . . . . . . . . . . . . . . . . . . . Machines Dismantled 1 | . . . . . . . . . . . . . 1 . . . . . . Machines Sabotaged . | . . . . . . . . . . . . . . . . . . . . Overloaded Fab Kills . | . . . . . . . . . . . . . . . . . . . . Hacking | -11 -10 -9 -9 -9 -7 -6 -6 -6 -5 -5 -5 -5 -5 -4 -3 -3 -2 -2 -1 --------- Run | Yrd Mat Mat Sto Rec Fac Fac Was Fac Fac Ext Cet Arc Hub Fac Res Tes Res Qua Acc Machines Accessed 79 | . 4 6 2 4 3 3 . 2 5 4 3 1 11 7 5 7 5 2 5 Terminals 63 | . 4 5 2 4 1 2 . . 2 4 3 . 11 5 3 7 4 2 4 Fabricators 1 | . . . . . . . . . . . . . . . . . 1 . . Repair Stations 5 | . . . . . . . . 2 1 . . . . 2 . . . . . Recycling Units 1 | . . 1 . . . . . . . . . . . . . . . . . Scanalyzers 1 | . . . . . . . . . 1 . . . . . . . . . . Garrison Access 7 | . . . . . 2 1 . . 1 . . . . . 2 . . . 1 Total Hacks 305 | . 14 14 3 11 6 5 . 3 11 6 10 25 40 54 20 34 23 7 19 Successful 169 | . 7 7 1 5 1 3 . . 8 3 6 25 26 27 10 20 11 2 7 Failed 135 | . 7 7 2 5 5 2 . 3 3 3 4 . 14 27 10 14 12 5 12 Catastrophic 26 | . . . 2 . 2 . . 1 . 1 1 . 3 2 2 2 6 1 3 Database Lockouts 1 | . . . . 1 . . . . . . . . . . . . . . . Manual 169 | . 12 9 1 10 3 3 . . 2 3 2 2 19 41 11 18 15 4 14 Terminals 242 | . 14 12 3 11 2 4 . . 3 6 10 . 40 46 15 34 19 7 16 Fabricators 4 | . . . . . . . . . . . . . . . . . 4 . . Repair Stations 14 | . . . . . . . . 3 3 . . . . 8 . . . . . Recycling Units 2 | . . 2 . . . . . . . . . . . . . . . . . Scanalyzers 4 | . . . . . . . . . 4 . . . . . . . . . . Garrison Access 14 | . . . . . 4 1 . . 1 . . . . . 5 . . . 3 Terminal Hacks 108 | . 3 3 1 2 . 1 . . 1 2 6 25 18 16 5 15 6 1 3 Record 51 | . . . . 1 . . . . . 1 5 25 4 9 . 5 1 . . Part Schematic 1 | . . . . . . . . . . . . . . . . . 1 . . Prototype ID Bank 14 | . 2 2 . 1 . . . . . . . . 1 1 2 4 1 . . Open Door 4 | . . . 1 . . . . . 1 1 1 . . . . . . . . Level Access Points 3 | . 1 . . . . . . . . . . . . 1 . . . . 1 Branch Access Points 7 | . . 1 . . . 1 . . . . . . 1 1 1 1 1 . . Emergency Access Points 1 | . . . . . . . . . . . . . . . . 1 . . . Machine Index 1 | . . . . . . . . . . . . . . . . 1 . . . Terminal Index 2 | . . . . . . . . . . . . . . 1 . . 1 . . Alert Level 6 | . . . . . . . . . . . . . 4 . . 2 . . . Unreport Threat 6 | . . . . . . . . . . . . . 3 2 . . . . 1 Locate Traps 1 | . . . . . . . . . . . . . 1 . . . . . . Recall Investigation 2 | . . . . . . . . . . . . . 1 . . . 1 . . Recall Extermination 2 | . . . . . . . . . . . . . . 1 . . . . 1 Recall Reinforcements 4 | . . . . . . . . . . . . . 1 . 2 . . 1 . Zone Layout 3 | . . . . . . . . . . . . . 2 . . 1 . . . Fabricator Hacks 2 | . . . . . . . . . . . . . . . . . 2 . . Load Schematic 1 | . . . . . . . . . . . . . . . . . 1 . . Build 1 | . . . . . . . . . . . . . . . . . 1 . . Repair Station Hacks 6 | . . . . . . . . . 1 . . . . 5 . . . . . Scan Component 4 | . . . . . . . . . 1 . . . . 3 . . . . . Repair 2 | . . . . . . . . . . . . . . 2 . . . . . Recycling Unit Hacks . | . . . . . . . . . . . . . . . . . . . . Scanalyzer 4 | . . . . . . . . . 4 . . . . . . . . . . Insert Component 2 | . . . . . . . . . 2 . . . . . . . . . . Analyze 2 | . . . . . . . . . 2 . . . . . . . . . . Garrison Access Hacks 6 | . . . . . 1 1 . . 1 . . . . . 2 . . . 1 Seal Access 6 | . . . . . 1 1 . . 1 . . . . . 2 . . . 1 Unauthorized Hacks 43 | . 4 4 . 3 . 1 . . 1 1 . . 8 6 3 5 3 1 3 Terminals 43 | . 4 4 . 3 . 1 . . 1 1 . . 8 6 3 5 3 1 3 Assimilate 5 | . . . . . . . . . . . . . . 2 . 1 . . 2 Botnet 38 | . 4 4 . 3 . 1 . . 1 1 . . 8 4 3 4 3 1 1 Fabricators . | . . . . . . . . . . . . . . . . . . . . Repair Stations . | . . . . . . . . . . . . . . . . . . . . Recycling Units . | . . . . . . . . . . . . . . . . . . . . Scanalyzers . | . . . . . . . . . . . . . . . . . . . . Garrison Access . | . . . . . . . . . . . . . . . . . . . . Data Cores Recovered 1 | . . . . . . . . . . 1 . . . . . . . . . Used . | . . . . . . . . . . . . . . . . . . . . Hacking Detections 56 | . 4 4 1 3 2 2 . 2 3 3 3 . 9 4 2 6 4 1 3 Full Trace Events 7 | . . 2 1 . 1 . . 1 1 . . . . . . . 1 . . Feedback Events 1 | . . . . . . . . . 1 . . . . . . . . . . Corruption 1 | . . . . . . . . . 1 . . . . . . . . . . Feedback Blocked . | . . . . . . . . . . . . . . . . . . . . Robot Schematics Acquired . | . . . . . . . . . . . . . . . . . . . . Robots Built . | . . . . . . . . . . . . . . . . . . . . Authchips . | . . . . . . . . . . . . . . . . . . . . Time . | . . . . . . . . . . . . . . . . . . . . Total Robot Build Rating . | . . . . . . . . . . . . . . . . . . . . Part Schematics Acquired 2 | . . . . . . . . . 1 . . . . . . . 1 . . Parts Built 2 | . . . . . . . . . . . . . . . . . 2 . . Authchips . | . . . . . . . . . . . . . . . . . . . . Time 42 | . . . . . . . . . . . . . . . . . 42 . . Total Part Build Rating 8 | . . . . . . . . . . . . . . . . . 8 . . Parts Repaired 2 | . . . . . . . . . . . . . . 2 . . . . . Time 123 | . . . . . . . . . . . . . . 123 . . . . . Parts Recycled . | . . . . . . . . . . . . . . . . . . . . Recycled Matter . | . . . . . . . . . . . . . . . . . . . . Retrieved Matter . | . . . . . . . . . . . . . . . . . . . . Retrieved Components . | . . . . . . . . . . . . . . . . . . . . Parts Scanalyzed 2 | . . . . . . . . . 2 . . . . . . . . . . Part Schematics Acquired 1 | . . . . . . . . . 1 . . . . . . . . . . Parts Damaged . | . . . . . . . . . . . . . . . . . . . . Bothacking | -11 -10 -9 -9 -9 -7 -6 -6 -6 -5 -5 -5 -5 -5 -4 -3 -3 -2 -2 -1 ------------ Run | Yrd Mat Mat Sto Rec Fac Fac Was Fac Fac Ext Cet Arc Hub Fac Res Tes Res Qua Acc Used RIF Installer . | . . . . . . . . . . . . . . . . . . . . Robots Hacked 1 | . . 1 . . . . . . . . . . . . . . . . . Non-combat 1 | . . 1 . . . . . . . . . . . . . . . . . Combat . | . . . . . . . . . . . . . . . . . . . . Robot Hacks Applied 1 | . . 1 . . . . . . . . . . . . . . . . . find_recycling 1 | . . 1 . . . . . . . . . . . . . . . . . Relay Couplers Released 6 | . . . . . 3 . . . . . . . 3 . . . . . . Machine Destruction 3 | . . . . . 3 . . . . . . . . . . . . . . Programmers 3 | . . . . . . . . . . . . . 3 . . . . . . Fabnet Peak Effective % . | . . . . . . . . . . . . . . . . . . . . Robots Rewired 24 | . . . . 13 . . . . . 11 . . . . . . . . . Allies Hacked . | . . . . . . . . . . . . . . . . . . . . Hacks Repelled . | . . . . . . . . . . . . . . . . . . . . Allies | -11 -10 -9 -9 -9 -7 -6 -6 -6 -5 -5 -5 -5 -5 -4 -3 -3 -2 -2 -1 -------- Run | Yrd Mat Mat Sto Rec Fac Fac Was Fac Fac Ext Cet Arc Hub Fac Res Tes Res Qua Acc Total Allies 40 | . . . . 13 . . . . . 17 5 . . 2 . 1 . . 2 Largest Group 10 | . . . . 10 8 . . . . 9 9 7 6 1 . 1 . . 2 Highest-Rated Group 607 | . . . . 170 144 . . . . 372 607 546 512 26 . 10 . . 71 Highest-Rated Ally 159 | . . . . 34 34 . . . . 159 150 96 96 26 . 10 . . 45 Total Orders 6 | . . . . 1 . . . . . . 2 . . . . 1 . . 2 STAY 4 | . . . . . . . . . . . 1 . . . . 1 . . 2 FOLLOW 1 | . . . . . . . . . . . 1 . . . . . . . . COLLECT 1 | . . . . 1 . . . . . . . . . . . . . . . Ally Attacks 341 | . . . . 16 21 . . . . 165 43 34 62 . . . . . . Total Damage 10682 | . . . . 413 714 . . . . 5203 1400 1043 1909 . . . . . . Kills 71 | . . . . 5 6 . . . . 32 10 5 13 . . . . . . Allies Corrupted 2 | . . . . . . . . . . . . . 2 . . . . . . Allies Melted 1 | . . . . . . . . . . 1 . . . . . . . . . Intel | -11 -10 -9 -9 -9 -7 -6 -6 -6 -5 -5 -5 -5 -5 -4 -3 -3 -2 -2 -1 ------- Run | Yrd Mat Mat Sto Rec Fac Fac Was Fac Fac Ext Cet Arc Hub Fac Res Tes Res Qua Acc Robot Analysis Total . | . . . . . . . . . . . . . . . . . . . . Derelict Logs Recovered . | . . . . . . . . . . . . . . . . . . . . Drone Launches . | . . . . . . . . . . . . . . . . . . . . Drone Recoveries . | . . . . . . . . . . . . . . . . . . . . Exploration | -11 -10 -9 -9 -9 -7 -6 -6 -6 -5 -5 -5 -5 -5 -4 -3 -3 -2 -2 -1 ------------- Run | Yrd Mat Mat Sto Rec Fac Fac Was Fac Fac Ext Cet Arc Hub Fac Res Tes Res Qua Acc Turns Passed 14825 | 141 1125 1600 1071 948 1194 370 137 319 419 2086 406 686 734 654 775 450 282 142 1286 Spaces Moved 14216 | 60 574 753 449 515 880 546 231 668 665 1570 480 423 1097 1069 1240 620 507 175 1694 Core 665 | 4 . . 2 . 99 . 132 255 . 73 . . . . . . . . 100 Treads 1868 | 56 574 136 354 515 233 . . . . . . . . . . . . . . Legs . | . . . . . . . . . . . . . . . . . . . . Wheels 1258 | . . 617 93 . 548 . . . . . . . . . . . . . . Hover . | . . . . . . . . . . . . . . . . . . . . Flight 10425 | . . . . . . 546 99 413 665 1497 480 423 1097 1069 1240 620 507 175 1594 Fastest Speed 14 | 50 160 105 135 160 50 40 40 34 28 28 39 29 29 35 26 14 26 26 20 Average Speed 58 | 155 160 128 162 160 110 40 45 43 33 45 39 29 40 35 26 25 26 27 31 Slowest Speed 350 | 160 160 240 350 160 160 40 50 170 34 150 39 39 109 35 99 26 26 29 150 Overloaded Moves 81 | . . . . . . . . . 25 18 . . . . . 3 . . 35 Propulsion Burnouts 1 | . . . . . . . . . . 1 . . . . . . . . . Robots Hopped 94 | . . . . . . . . . . 25 . 2 46 11 . 5 1 . 4 Cave-ins Triggered . | . . . . . . . . . . . . . . . . . . . . Exploration Rate (%) 51 | 6 92 65 64 90 25 18 87 25 11 88 96 100 68 28 32 78 13 25 26 Regions Visited 19 Branch Regions 8 Pre-discovered Areas . | . . . . . . . . . . . . . . . . . . . . Known Exits Taken 13 | . 1 1 . . . . . 1 1 1 1 1 1 1 1 1 1 1 . Unknown Exits Taken 4 | 1 . . 1 1 1 . . . . . . . . . . . . . . Scrap Searched . | . . . . . . . . . . . . . . . . . . . . Spaces Dug 44 | . . . 1 . . . . . 2 2 . . 1 3 5 1 5 5 19 Terrain Destroyed 58 | . . . 3 1 11 . . . 2 2 . . 1 3 5 1 5 5 19 Melee 28 | . . . . . . . . . 2 2 . . 1 3 5 1 5 . 9 Projectile 19 | . . . 3 1 . . . . . . . . . . . . . 5 10 AOE 11 | . . . . . 11 . . . . . . . . . . . . . . Terrain Rammed . | . . . . . . . . . . . . . . . . . . . . Walls Destroyed . | . . . . . . . . . . . . . . . . . . . . Machines Disabled . | . . . . . . . . . . . . . . . . . . . . Actions | -11 -10 -9 -9 -9 -7 -6 -6 -6 -5 -5 -5 -5 -5 -4 -3 -3 -2 -2 -1 --------- Run | Yrd Mat Mat Sto Rec Fac Fac Was Fac Fac Ext Cet Arc Hub Fac Res Tes Res Qua Acc Total 19619 | 81 690 1097 615 603 998 692 259 685 857 2873 698 963 1314 1328 1668 899 645 260 2394 Wait 4345 | . 30 152 42 35 18 133 21 . 187 1142 219 506 179 257 360 274 94 47 649 Move 14030 | 59 574 752 448 514 879 546 230 667 664 1529 479 418 1011 1046 1239 611 504 174 1686 Hop 75 | . . . . . . . . . . 15 . 2 39 11 . 3 1 . 4 Pick Up 46 | 2 9 3 2 1 2 . 2 1 1 4 . 6 2 3 7 . 1 . . Fast Attach 129 | 6 11 14 12 1 12 7 5 9 3 15 . 5 10 4 11 2 2 . . Attach 38 | . . 6 1 . 2 4 . 3 . 6 . 3 2 1 4 2 . 1 3 Detach 34 | . 2 3 . . . 1 1 1 . 5 . 2 3 . 12 2 . . 2 Swap 48 | 1 4 5 3 4 3 . . . . . . 2 4 . 11 2 . 2 7 Drop 79 | . 7 9 7 2 13 . . 1 . 8 . 7 10 2 11 1 1 . . Fire 391 | 13 45 146 95 9 67 . . . . . . . 1 . . . . 5 10 Melee 144 | . . 5 4 29 . 1 . 3 2 23 . 12 15 4 13 2 6 1 24 Ram 5 | . . 2 . . 2 . . . . . . . . . . . . . 1 Kick . | . . . . . . . . . . . . . . . . . . . . Crush 16 | . 8 . 1 7 . . . . . . . . . . . . . . . Escape Stasis 94 | . . . . . . . . . . 28 . . . . . . 36 30 . Rewire 99 | . . . . 1 . . . . . 98 . . . . . . . . . Trap 40 | . . . . . . . . . . . . . 32 . . . . . 8 Miscellaneous 6 | . . . . . . . . . . . . . 6 . . . . . . Route ------- -11/Scrapyard -10/Materials (discovered 5 exits: *Mat x3 / [*Min] / [*Sub]) -9/Materials (discovered 4 exits: [*Mat x2] / *Min / *Sto) -9/Storage -9/Recycling -7/Factory (discovered 2 exits: *Fac / [*Low]) -6/Factory (discovered 2 exits: Low x2) -6/Waste -6/Factory (discovered 2 exits: *Fac x2) -5/Factory (discovered 2 exits: *Upp / *Ext) -5/Extension (discovered 3 exits: *Fac x2 / *Cet) -5/Cetus (discovered 3 exits: *Fac x2 / *Arc) -5/Archives (discovered 3 exits: *Fac / *Hub x2) -5/Hub_04(d) (discovered 2 exits: *Fac x2) -4/Factory (discovered 6 exits: *Res x4 / Upp x2) -3/Research (discovered 4 exits: *Res / Arm / *Tes x2) -3/Testing -2/Research (discovered 2 exits: *Qua x2) -2/Quarantine -1/Access (discovered 1 exit: Sur) History --------- Turn | Location | Event 4 | -11/Scrapyard | Discovered new exit (range 16) 142 | -11/Scrapyard | Entered Materials 314 | -10/Materials | Build established: Mutant 550 | -10/Materials | Discovered new exit (range 11) 929 | -10/Materials | Discovered new exit (range 15) 1065 | -10/Materials | Identified exit to Materials 1098 | -10/Materials | Discovered new exit (range 14) 1202 | -10/Materials | Discovered new exit (range 9) 1267 | -10/Materials | Entered another Materials area 1267 | -9/Materials | Evolved 2 slots: Utility x2 1361 | -9/Materials | Lost 3 parts (1p1u1w) 1975 | -9/Materials | Identified exit to Mines 1975 | -9/Materials | Identified exit to Storage 2323 | -9/Materials | Discovered new exit (range 16) 2634 | -9/Materials | Discovered new exit (range 15) 2867 | -9/Materials | First assault squad dispatched 2867 | -9/Materials | Entered Storage 3133 | -9/Storage | Build established: Scavenger-Mutant 3133 | -9/Storage | Core integrity fell below 50% 3389 | -9/Storage | Lost 3 parts (1n1u1w) 3674 | -9/Storage | Build established: Mutant 3833 | -9/Storage | Garrison activated, responded to threat 3934 | -9/Storage | Used back door to open Recycling access 3934 | -9/Storage | Discovered new exit (range 4) 3938 | -9/Storage | Entered Recycling 4334 | -9/Recycling | Build established: Commander-Mutant 4834 | -9/Recycling | Discovered new exit (range 12) 4886 | -9/Recycling | Entered Factory 4886 | -7/Factory | Accompanied by 8 allies 4886 | -7/Factory | Evolved 4 slots: Propulsion x2, Utility x2 5032 | -7/Factory | Lost 5 allies 5186 | -7/Factory | Discovered new exit (range 14) 5312 | -7/Factory | Build established: Mutant 5480 | -7/Factory | Lost 3 allies 5805 | -7/Factory | Discovered new exit (range 9) 5821 | -7/Factory | Build established: Scavenger-Mutant 5913 | -7/Factory | Garrison activated, responded to threat 6011 | -7/Factory | Cargo convoy interrupted 6031 | -7/Factory | Core integrity fell below 50% 6031 | -7/Factory | Released all parts (4) 6062 | -7/Factory | Lost 8 parts (1p1n3u3w) 6068 | -7/Factory | Core integrity fell below 20% 6080 | -7/Factory | Entered another Factory area 6080 | -6/Factory | Evolved 2 slots: Utility x2 6231 | -6/Factory | Build established: Mutant 6300 | -6/Factory | Identified exit to Lower Caves 6450 | -6/Factory | Manually triggered Chute Trap 6450 | -6/Factory | Sucked down chute 6450 | -6/Factory | Entered Waste 6454 | -6/Waste | Spotted C-40 Crusher 6454 | -6/Waste | Spotted C-40 Crusher 6455 | -6/Waste | Spotted C-40 Crusher 6465 | -6/Waste | EMP discharged 6486 | -6/Waste | Spotted C-40 Crusher 6497 | -6/Waste | Crushed by Compactor (1 part destroyed, 2 dropped) 6500 | -6/Waste | Crushed by Compactor (1 part destroyed, 1 dropped) 6501 | -6/Waste | Spotted C-40 Crusher 6503 | -6/Waste | Crushed by Compactor (1 part destroyed, 2 dropped) 6507 | -6/Waste | Spotted C-40 Crusher 6510 | -6/Waste | Discovered new exit (range 22) 6513 | -6/Waste | Crushed by Compactor (1 part destroyed, 2 dropped) 6516 | -6/Waste | Crushed by Compactor (1 part destroyed) 6547 | -6/Waste | Lost 7 parts (1n5u1w) 6565 | -6/Waste | EMP discharged 6565 | -6/Waste | System corruption reached 10% 6576 | -6/Waste | Core integrity fell below 50% 6587 | -6/Waste | Entered Factory 6609 | -6/Factory | Discovered new exit (range 6) 6867 | -6/Factory | Discovered new exit (range 16) 6872 | -6/Factory | Identified exit to Factory 6906 | -6/Factory | Entered another Factory area 6906 | -5/Factory | Evolved 2 slots: Utility x2 6976 | -5/Factory | Discovered new exit (range 6) 6978 | -5/Factory | Identified exit to Upper Caves 7324 | -5/Factory | Discovered new exit (range 6) 7325 | -5/Factory | Identified exit to Extension 7325 | -5/Factory | Entered Extension 7499 | -5/Extension | Rescued a captive Derelict 7501 | -5/Extension | Rescued a captive Derelict 7978 | -5/Extension | Energy Cycler disabled 7978 | -5/Extension | Rescued a captive Derelict 7978 | -5/Extension | Rescued a captive Derelict 7978 | -5/Extension | Rescued a captive Derelict 7979 | -5/Extension | Rescued A7 7979 | -5/Extension | Rescued a captive Derelict 7979 | -5/Extension | Rescued a captive Derelict 7981 | -5/Extension | Rescued a captive Derelict 7988 | -5/Extension | Rescued a captive Derelict 7993 | -5/Extension | Rescued a captive Derelict 7997 | -5/Extension | Rescued a captive Derelict 8015 | -5/Extension | Lost 5 parts (1p1n2u1w) 8029 | -5/Extension | Spotted B-75 Beast 8159 | -5/Extension | Build established: Scout 8623 | -5/Extension | Spotted B-75 Beast 8624 | -5/Extension | Discovered new exit (range 15) 8651 | -5/Extension | Allies destroyed B-75 Beast 8677 | -5/Extension | Lost 3 allies 8911 | -5/Extension | Lost 4 allies 9323 | -5/Extension | Discovered new exit (range 10) 9323 | -5/Extension | Discovered new exit (range 6) 9326 | -5/Extension | Identified exit to Cetus 9327 | -5/Extension | Identified exit to Factory 9411 | -5/Extension | Entered Cetus 9411 | -5/Cetus | Accompanied by 7 allies (A7) 9416 | -5/Cetus | Acquired a Cetus Manufacturing Module code from A7 9421 | -5/Cetus | Spotted Cetus Guard 9421 | -5/Cetus | Spotted Cetus Guard 9430 | -5/Cetus | Spotted Cetus Guard 9435 | -5/Cetus | Spotted Cetus Guard 9436 | -5/Cetus | Allies destroyed Cetus Guard 9438 | -5/Cetus | Allies destroyed Cetus Guard 9439 | -5/Cetus | Allies destroyed Cetus Guard 9444 | -5/Cetus | Allies destroyed Cetus Guard 9445 | -5/Cetus | Extracted ID and sensor layout for unrecognized location from A7's data core 9461 | -5/Cetus | Started Cetus Manufacturing Module 9466 | -5/Cetus | Lost 3 allies 9486 | -5/Cetus | Manufactured an Enhanced Grunt 9511 | -5/Cetus | Manufactured an Enhanced Grunt 9536 | -5/Cetus | Manufactured an Enhanced Grunt 9561 | -5/Cetus | Manufactured an Enhanced Grunt 9586 | -5/Cetus | Manufactured an Enhanced Grunt 9646 | -5/Cetus | Discovered new exit (range 17) 9652 | -5/Cetus | Identified exit to Archives 9662 | -5/Cetus | Spotted Cetus Guard 9662 | -5/Cetus | Spotted Cetus Guard 9689 | -5/Cetus | Spotted Cetus Guard 9689 | -5/Cetus | Allies destroyed Cetus Guard 9692 | -5/Cetus | Allies destroyed Cetus Guard 9693 | -5/Cetus | Spotted Cetus Guard 9694 | -5/Cetus | Allies destroyed Cetus Guard 9695 | -5/Cetus | Allies destroyed Cetus Guard 9702 | -5/Cetus | Discovered exit to Factory (range 17) 9706 | -5/Cetus | Met Revision 17 9743 | -5/Cetus | Discovered exit to Factory (range 18) 9787 | -5/Cetus | Build established: Commander-Scout 9817 | -5/Cetus | Entered Archives 9817 | -5/Archives | Accompanied by 7 allies 9874 | -5/Archives | Unable to access archive contents 9876 | -5/Archives | Discovered new exit (range 18) 9877 | -5/Archives | Unable to access archive contents 9885 | -5/Archives | Discovered new exit (range 18) 9886 | -5/Archives | Unable to access archive contents 9891 | -5/Archives | Discovered exit to Factory (range 18) 9912 | -5/Archives | Identified exit to Hub_04(d) 9930 | -5/Archives | Unable to access archive contents 10170 | -5/Archives | Build established: Scavenger-Scout 10503 | -5/Archives | Entered Hub_04(d) 10503 | -5/Hub_04(d) | Accompanied by 6 allies 10801 | -5/Hub_04(d) | Found Unknown Protection 10801 | -5/Hub_04(d) | Identified Powered Armor 10818 | -5/Hub_04(d) | Discovered exit to Factory (range 11) 11032 | -5/Hub_04(d) | Discovered exit to Factory (range 8) 11180 | -5/Hub_04(d) | Network Hub disabled 11195 | -5/Hub_04(d) | Spotted Lightning 11195 | -5/Hub_04(d) | Spotted Lightning 11197 | -5/Hub_04(d) | Spotted Lightning 11205 | -5/Hub_04(d) | Spotted Lightning 11205 | -5/Hub_04(d) | Spotted Lightning 11237 | -5/Hub_04(d) | Entered Factory 11237 | -4/Factory | Evolved 2 slots: Utility x2 11269 | -4/Factory | Build established: Hacker-Scout 11403 | -4/Factory | Spotted B-86 Titan 11470 | -4/Factory | Identified exit to Research 11470 | -4/Factory | Identified exit to Upper Caves 11561 | -4/Factory | Repaired Broken Lrn. Terrain Scanner 11872 | -4/Factory | Repaired Gravity Neutralizer 11891 | -4/Factory | Entered Research 11891 | -3/Research | Evolved 2 slots: Utility x2 12031 | -3/Research | Spotted B-86 Titan 12091 | -3/Research | Revision forces began assault on 0b10 12213 | -3/Research | Met up with Revision 17++ 12264 | -3/Research | Discovered new exit (range 4) 12265 | -3/Research | Identified exit to Research 12394 | -3/Research | Identified exit to Armory 12394 | -3/Research | Identified exit to Testing 12565 | -3/Research | Spotted B-86 Titan 12591 | -3/Research | Research terminal network offline 12665 | -3/Research | Lost 3 allies 12666 | -3/Research | Entered Testing 12680 | -3/Testing | Spotted PH-07Q5IRP44I 12811 | -3/Testing | Found Prototype Device 12811 | -3/Testing | Identified Exp. Thermal Shield 13099 | -3/Testing | Discovered exit to Research (range 20) 13116 | -3/Testing | Entered Research 13116 | -2/Research | Evolved 2 slots: Utility x2 13211 | -2/Research | Identified exit to Quarantine 13274 | -2/Research | Fabricated Adv. Terrain Scan Processor (x2) 13398 | -2/Research | Entered Quarantine 13428 | -2/Quarantine | Build established: Hacker-Ninja 13537 | -2/Quarantine | Discovered new exit (range 9) 13539 | -2/Quarantine | Identified exit to Access 13540 | -2/Quarantine | Entered Access 13540 | -1/Access | Evolved 2 slots: Power x1, Propulsion x1 13909 | -1/Access | Identified exit to Surface 13918 | -1/Access | Spotted B-99 Colossus 14797 | -1/Access | Released all parts (16) 14813 | -1/Access | Core integrity fell below 50% 14822 | -1/Access | Core integrity fell below 20% 14826 | -1/Access | Destroyed by G-73 Enforcer with Phase Gun Last Messages --------------- reinforcements to area. 14812_ Knocked back. [Achievement: Hunted] 14814_ S-43 Plague knocked back. 14814_ S-43 Plague system corrupted by crushing effect. 14814_ S-43 Plague destroyed. 14816_ Knocked back. 14818_ Slug penetrates C-57 Dissector. 14818_ C-57 Dissector destroyed. 14818_ K-01 Serf collects debris. 14819_ K-01 Serf destroyed. 14819_ Slug penetrates P-80 Master. 14820_ Slug penetrates Wall. 14820_ Slammed into K-01 Serf. 14820_ K-01 Serf knocked back. 14821_ Knocked back. 14822_ System corrupted: Matter fused (-5). 14822_ Acquired 14 matter. 14822_ Slug penetrates Wall. 14822_ Penetrated by Slug. Map ----- +----------------------------------------------------+ | ?????????????????????????????????????????????????? | | ?????????????????????????????????????????????????? | | ?????????????????????????????????????????????????? | | ?????????????????????????????????????????????????? | | ?????????????????????????????????????????????????? | | ?????????????????????????????????????????????????? | | ?????????????????????????????????????????????????? | | ?????????????????????????????????????????????????? | | ?????????????????????????????????????????????????? | | ?????????????????????????????????????????????????? | | ?????????????????????????????????????????????????? | | ?????????????????????????????????????????????????? | | ?????????????????????????????????????????????????? | | ?????????????????????????????????????????????????? | | ?????????????????????????????????????????????????? | | ?????????????????????????????????????????????????? | | ?????????????????? ????????????????????????????? | | ?????????????????? ????????????????????????????? | | ??????????????????# ????????????????????????????? | | ??????????????????# ????????????????????????????? | | ??????????????????# ????????????????????????????? | | ??????????????????# #######"????????????????????? | | ??????????????????#g """T""""????????????????????? | | ??????????????????# """ """"????????????????????? | | ??????????????????# "????????????????????? | | ??????????????????# @ "????????????????????? | | ??????????????????# R "????????????????????? | | ??????????????????# "????